[Event "Titled Tuesday Blitz March 07 Late 2023"]
[White "Reprintsev, Alexander"]
[Black "Paspuel, Trosky"]
[WhiteFideId "14100541"]
[BlackFideId "3602150"]
[WhiteElo "2229"]
[BlackElo "2340"]
[Result "1-0"]
[Round "05"]
[TimeControl "180+2"]
[Date "2023.03.07"]
[WhiteClock "0:01:50"]
[BlackClock "0:01:12"]

1. e4 {[%clk 0:02:46]}  c6 {[%clk 0:02:59]} 2. Nc3 {[%clk 0:02:44]}  d5 {[%clk 0:03:00]} 3. Nf3 {[%clk 0:02:43]}  dxe4 {[%clk 0:03:00]} 4. Nxe4 {[%clk 0:02:43]}  Nf6 {[%clk 0:03:01]} 5. Qe2 {[%clk 0:02:43]}  Nxe4 {[%clk 0:03:01]} 6. Qxe4 {[%clk 0:02:43]}  Nd7 {[%clk 0:03:02]} 7. Bc4 {[%clk 0:02:41]}  Nf6 {[%clk 0:03:02]} 8. Ne5 {[%clk 0:02:41]}  e6 {[%clk 0:03:03]} 9. Qe2 {[%clk 0:02:39]}  b5 {[%clk 0:03:02]} 10. Bb3 {[%clk 0:02:37]}  Qc7 {[%clk 0:02:53]} 11. d4 {[%clk 0:02:36]}  Bd6 {[%clk 0:02:54]} 12. a4 {[%clk 0:02:35]}  O-O {[%clk 0:02:43]} 13. O-O {[%clk 0:02:20]}  c5 {[%clk 0:02:39]} 14. axb5 {[%clk 0:02:13]}  cxd4 {[%clk 0:02:37]} 15. Bf4 {[%clk 0:02:08]}  Bb7 {[%clk 0:02:36]} 16. Rfd1 {[%clk 0:01:53]}  Nd7 {[%clk 0:02:18]} 17. Nxd7 {[%clk 0:01:51]}  Bxf4 {[%clk 0:02:18]} 18. Nxf8 {[%clk 0:01:51]}  Bxh2+ {[%clk 0:02:16]} 19. Kh1 {[%clk 0:01:51]}  Qf4 {[%clk 0:01:12]} 20. Qh5 {[%clk 0:01:50]}  Kxf8 {[%clk 0:01:12]} 1-0


[Site "https://www.chess.com"]

[Event "Titled Tuesday Blitz March 07 Late 2023"]
[White "Barash, Anton"]
[Black "Mendez Fortes, Eduardo Jesus"]
[WhiteFideId "30935229"]
[BlackFideId "3502376"]
[WhiteElo "2324"]
[BlackElo "2307"]
[Result "0-1"]
[Round "05"]
[TimeControl "180+2"]
[Date "2023.03.07"]
[WhiteClock "0:00:06"]
[BlackClock "0:01:10"]

1. e4 {[%clk 0:02:53]}  c5 {[%clk 0:02:59]} 2. Nf3 {[%clk 0:02:53]}  d6 {[%clk 0:02:59]} 3. d4 {[%clk 0:02:54]}  cxd4 {[%clk 0:03:00]} 4. Nxd4 {[%clk 0:02:55]}  Nf6 {[%clk 0:03:00]} 5. Nc3 {[%clk 0:02:55]}  a6 {[%clk 0:03:01]} 6. Bg5 {[%clk 0:02:52]}  Nbd7 {[%clk 0:03:01]} 7. f4 {[%clk 0:02:47]}  Qc7 {[%clk 0:02:55]} 8. Qe2 {[%clk 0:02:38]}  h6 {[%clk 0:02:53]} 9. Bh4 {[%clk 0:02:37]}  e5 {[%clk 0:02:47]} 10. fxe5 {[%clk 0:02:32]}  dxe5 {[%clk 0:02:48]} 11. Nf5 {[%clk 0:02:31]}  Nc5 {[%clk 0:02:18]} 12. Bxf6 {[%clk 0:02:27]}  gxf6 {[%clk 0:02:06]} 13. Ne3 {[%clk 0:02:11]}  Be6 {[%clk 0:02:00]} 14. Ned5 {[%clk 0:02:07]}  Bxd5 {[%clk 0:01:58]} 15. Nxd5 {[%clk 0:02:08]}  Qa5+ {[%clk 0:01:56]} 16. b4 {[%clk 0:02:04]}  Qa4 {[%clk 0:01:53]} 17. bxc5 {[%clk 0:01:51]}  Bxc5 {[%clk 0:01:52]} 18. Qc4 {[%clk 0:01:22]}  Qc6 {[%clk 0:01:50]} 19. Nxf6+ {[%clk 0:01:09]}  Kf8 {[%clk 0:01:50]} 20. Qxc5+ {[%clk 0:01:08]}  Qxc5 {[%clk 0:01:50]} 21. Nd7+ {[%clk 0:01:08]}  Ke7 {[%clk 0:01:51]} 22. Nxc5 {[%clk 0:01:09]}  Rac8 {[%clk 0:01:51]} 23. Nxb7 {[%clk 0:01:05]}  Rxc2 {[%clk 0:01:51]} 24. Bxa6 {[%clk 0:01:00]}  Rxg2 {[%clk 0:01:47]} 25. O-O-O {[%clk 0:00:52]}  Rc8+ {[%clk 0:01:45]} 26. Kb1 {[%clk 0:00:46]}  Rcc2 {[%clk 0:01:45]} 27. Bd3 {[%clk 0:00:40]}  Rb2+ {[%clk 0:01:44]} 28. Kc1 {[%clk 0:00:40]}  Rxb7 {[%clk 0:01:31]} 29. Rd2 {[%clk 0:00:39]}  Rg6 {[%clk 0:01:31]} 30. a4 {[%clk 0:00:35]}  Rc6+ {[%clk 0:01:30]} 31. Kd1 {[%clk 0:00:35]}  Rb4 {[%clk 0:01:28]} 32. Ra2 {[%clk 0:00:32]}  Rd6 {[%clk 0:01:25]} 33. Ke2 {[%clk 0:00:31]}  Rbd4 {[%clk 0:01:22]} 34. Rd1 {[%clk 0:00:26]}  Rg6 {[%clk 0:01:20]} 35. Ke3 {[%clk 0:00:23]}  f5 {[%clk 0:01:09]} 36. exf5 {[%clk 0:00:16]}  Rgg4 {[%clk 0:01:09]} 37. a5 {[%clk 0:00:15]}  Rh4 {[%clk 0:01:10]} 38. a6 {[%clk 0:00:15]}  Rh3+ {[%clk 0:01:10]} 39. Kd2 {[%clk 0:00:06]}  Rxh2+ {[%clk 0:01:10]} 40. Kc3 {[%clk 0:00:07]}  Rxa2 {[%clk 0:01:10]} 41. Rh1 {[%clk 0:00:06]}  Ra3+ {[%clk 0:01:10]} 0-1


[Site "https://www.chess.com"]

[Event "Titled Tuesday Blitz March 07 Late 2023"]
[White "Petrovic, Aleksa"]
[Black "De Souza, Cristiano Gomes"]
[WhiteFideId "967629"]
[BlackFideId "2151758"]
[WhiteElo "2326"]
[BlackElo "2068"]
[Result "1-0"]
[Round "05"]
[TimeControl "180+2"]
[Date "2023.03.07"]
[WhiteClock "0:02:00"]
[BlackClock "0:02:07"]

1. d4 {[%clk 0:02:49]}  Nf6 {[%clk 0:02:58]} 2. c4 {[%clk 0:02:48]}  g6 {[%clk 0:02:59]} 3. Nc3 {[%clk 0:02:47]}  d6 {[%clk 0:02:58]} 4. e4 {[%clk 0:02:46]}  Bg7 {[%clk 0:02:58]} 5. Nf3 {[%clk 0:02:46]}  O-O {[%clk 0:02:57]} 6. Be2 {[%clk 0:02:47]}  e5 {[%clk 0:02:56]} 7. O-O {[%clk 0:02:46]}  Nc6 {[%clk 0:02:55]} 8. d5 {[%clk 0:02:46]}  Ne7 {[%clk 0:02:55]} 9. b4 {[%clk 0:02:46]}  Nh5 {[%clk 0:02:51]} 10. Re1 {[%clk 0:02:39]}  Nf4 {[%clk 0:02:48]} 11. Bf1 {[%clk 0:02:38]}  f5 {[%clk 0:02:46]} 12. Bxf4 {[%clk 0:02:30]}  exf4 {[%clk 0:02:46]} 13. e5 {[%clk 0:02:30]}  dxe5 {[%clk 0:02:36]} 14. Nxe5 {[%clk 0:02:29]}  g5 {[%clk 0:02:35]} 15. c5 {[%clk 0:02:24]}  Ng6 {[%clk 0:02:34]} 16. Nxg6 {[%clk 0:02:23]}  hxg6 {[%clk 0:02:34]} 17. d6 {[%clk 0:02:18]}  Bxc3 {[%clk 0:02:27]} 18. Qb3+ {[%clk 0:02:17]}  Kh7 {[%clk 0:02:22]} 19. Qxc3 {[%clk 0:02:16]}  cxd6 {[%clk 0:02:21]} 20. Rad1 {[%clk 0:02:12]}  Rf6 {[%clk 0:02:11]} 21. Rxd6 {[%clk 0:02:00]}  Rxd6 {[%clk 0:02:09]} 22. cxd6 {[%clk 0:02:00]}  Qxd6 {[%clk 0:02:07]} 23. Re8 {[%clk 0:02:00]} 1-0


[Site "https://www.chess.com"]

[Event "Titled Tuesday Blitz March 07 Late 2023"]
[White "Kochetov, Andrey"]
[Black "Rodriguez Santiago, Jaime"]
[WhiteFideId "24130532"]
[BlackFideId "3100898"]
[WhiteElo "2514"]
[BlackElo "2025"]
[Result "1-0"]
[Round "05"]
[TimeControl "180+2"]
[Date "2023.03.07"]
[WhiteClock "0:00:08"]
[BlackClock "0:00:23"]

1. g4 {[%clk 0:02:41]}  d5 {[%clk 0:02:58]} 2. Bg2 {[%clk 0:02:41]}  e5 {[%clk 0:02:57]} 3. g5 {[%clk 0:02:39]}  c5 {[%clk 0:02:50]} 4. c4 {[%clk 0:02:30]}  Be6 {[%clk 0:02:32]} 5. Qb3 {[%clk 0:02:10]}  Nd7 {[%clk 0:02:11]} 6. cxd5 {[%clk 0:02:06]}  Bf5 {[%clk 0:02:09]} 7. e4 {[%clk 0:02:03]}  Bg6 {[%clk 0:02:08]} 8. d3 {[%clk 0:01:50]}  b6 {[%clk 0:02:06]} 9. Ne2 {[%clk 0:01:41]}  Bd6 {[%clk 0:02:03]} 10. Na3 {[%clk 0:01:31]}  h6 {[%clk 0:01:54]} 11. gxh6 {[%clk 0:01:25]}  Nxh6 {[%clk 0:01:53]} 12. Nc4 {[%clk 0:01:25]}  Bb8 {[%clk 0:01:48]} 13. Bd2 {[%clk 0:01:00]}  Qh4 {[%clk 0:01:39]} 14. Ng3 {[%clk 0:00:33]}  Ng4 {[%clk 0:01:37]} 15. h3 {[%clk 0:00:33]}  Ngf6 {[%clk 0:01:24]} 16. a4 {[%clk 0:00:33]}  Bc7 {[%clk 0:01:02]} 17. a5 {[%clk 0:00:33]}  Rb8 {[%clk 0:01:00]} 18. axb6 {[%clk 0:00:33]}  axb6 {[%clk 0:00:59]} 19. Ra7 {[%clk 0:00:33]}  Bd8 {[%clk 0:00:54]} 20. Nd6+ {[%clk 0:00:27]}  Kf8 {[%clk 0:00:52]} 21. Ndf5 {[%clk 0:00:27]}  Bxf5 {[%clk 0:00:49]} 22. Nxf5 {[%clk 0:00:26]}  Qh5 {[%clk 0:00:45]} 23. Ng3 {[%clk 0:00:23]}  Qg6 {[%clk 0:00:44]} 24. Qb5 {[%clk 0:00:13]}  Kg8 {[%clk 0:00:26]} 25. Rxd7 {[%clk 0:00:12]}  Nxd7 {[%clk 0:00:27]} 26. Qxd7 {[%clk 0:00:13]}  Bh4 {[%clk 0:00:23]} 27. O-O {[%clk 0:00:12]}  Bxg3 {[%clk 0:00:23]} 28. fxg3 {[%clk 0:00:13]}  Rf8 {[%clk 0:00:22]} 29. Rf3 {[%clk 0:00:11]}  Rh6 {[%clk 0:00:22]} 30. h4 {[%clk 0:00:10]}  Qd6 {[%clk 0:00:21]} 31. Qf5 {[%clk 0:00:04]}  Rf6 {[%clk 0:00:19]} 32. Qg4 {[%clk 0:00:05]}  Rxf3 {[%clk 0:00:19]} 33. Qxf3 {[%clk 0:00:06]}  f6 {[%clk 0:00:20]} 34. Bh3 {[%clk 0:00:06]}  Ra8 {[%clk 0:00:20]} 35. Be6+ {[%clk 0:00:07]}  Kf8 {[%clk 0:00:20]} 36. Qh5 {[%clk 0:00:07]}  Ke7 {[%clk 0:00:21]} 37. Qf7+ {[%clk 0:00:07]}  Kd8 {[%clk 0:00:22]} 38. Qg8+ {[%clk 0:00:07]}  Kc7 {[%clk 0:00:23]} 39. Qxa8 {[%clk 0:00:08]}  c4 {[%clk 0:00:23]} 40. Qc8# {[%clk 0:00:08]} 1-0


[Site "https://www.chess.com"]

[Event "Titled Tuesday Blitz March 07 Late 2023"]
[White "Ricaurte Lopez, Juan Carlos"]
[Black "Gireman, Ja"]
[WhiteFideId "3600327"]
[BlackFideId "5043794"]
[WhiteElo "2209"]
[BlackElo "2153"]
[Result "1-0"]
[Round "05"]
[TimeControl "180+2"]
[Date "2023.03.07"]
[WhiteClock "0:00:53"]
[BlackClock "0:00:33"]

1. e4 {[%clk 0:02:57]}  e6 {[%clk 0:02:48]} 2. d4 {[%clk 0:02:57]}  d5 {[%clk 0:02:49]} 3. exd5 {[%clk 0:02:57]}  exd5 {[%clk 0:02:49]} 4. Nf3 {[%clk 0:02:58]}  Bd6 {[%clk 0:02:48]} 5. c4 {[%clk 0:02:57]}  Nf6 {[%clk 0:02:44]} 6. Bd3 {[%clk 0:02:53]}  dxc4 {[%clk 0:02:43]} 7. Bxc4 {[%clk 0:02:52]}  O-O {[%clk 0:02:44]} 8. O-O {[%clk 0:02:51]}  Bg4 {[%clk 0:02:44]} 9. Bg5 {[%clk 0:02:47]}  Nc6 {[%clk 0:02:40]} 10. Nc3 {[%clk 0:02:43]}  h6 {[%clk 0:02:39]} 11. Bh4 {[%clk 0:02:41]}  g5 {[%clk 0:02:37]} 12. Bg3 {[%clk 0:02:36]}  Bxf3 {[%clk 0:02:37]} 13. Qxf3 {[%clk 0:02:35]}  Nxd4 {[%clk 0:02:35]} 14. Qxb7 {[%clk 0:02:19]}  Bxg3 {[%clk 0:02:23]} 15. hxg3 {[%clk 0:02:11]}  Rb8 {[%clk 0:02:00]} 16. Qxa7 {[%clk 0:02:09]}  Rb4 {[%clk 0:02:00]} 17. b3 {[%clk 0:02:03]}  Qd6 {[%clk 0:01:46]} 18. Rad1 {[%clk 0:01:55]}  c5 {[%clk 0:01:45]} 19. Rfe1 {[%clk 0:01:46]}  Ng4 {[%clk 0:01:32]} 20. Ne4 {[%clk 0:01:33]}  Qc6 {[%clk 0:01:12]} 21. Qxc5 {[%clk 0:01:26]}  Qxc5 {[%clk 0:01:12]} 22. Nxc5 {[%clk 0:01:26]}  Nc6 {[%clk 0:01:13]} 23. Rd5 {[%clk 0:01:19]}  Kg7 {[%clk 0:01:06]} 24. f3 {[%clk 0:01:15]}  Nf6 {[%clk 0:01:00]} 25. Rd6 {[%clk 0:01:13]}  Rc8 {[%clk 0:00:59]} 26. Nd7 {[%clk 0:01:05]}  Ng8 {[%clk 0:00:51]} 27. Ne5 {[%clk 0:00:58]}  Na5 {[%clk 0:00:36]} 28. Rd7 {[%clk 0:00:55]}  Nxc4 {[%clk 0:00:33]} 29. Rxf7+ {[%clk 0:00:54]}  Kh8 {[%clk 0:00:33]} 30. Ng6# {[%clk 0:00:53]} 1-0


[Site "https://www.chess.com"]

[Event "Titled Tuesday Blitz March 07 Late 2023"]
[White "Bouget, Alexandre"]
[Black "Gascon Del Nogal, Jose Rafael"]
[WhiteFideId "681318"]
[BlackFideId "3902463"]
[WhiteElo "2177"]
[BlackElo "2473"]
[Result "0-1"]
[Round "05"]
[TimeControl "180+2"]
[Date "2023.03.07"]
[WhiteClock "0:00:33"]
[BlackClock "0:01:01"]

1. d4 {[%clk 0:02:55]}  d5 {[%clk 0:02:58]} 2. c4 {[%clk 0:02:55]}  e6 {[%clk 0:02:57]} 3. Nc3 {[%clk 0:02:54]}  h6 {[%clk 0:02:57]} 4. cxd5 {[%clk 0:02:51]}  exd5 {[%clk 0:02:57]} 5. Qb3 {[%clk 0:02:34]}  Nf6 {[%clk 0:02:56]} 6. Nf3 {[%clk 0:02:17]}  Bd6 {[%clk 0:02:48]} 7. e3 {[%clk 0:02:12]}  O-O {[%clk 0:02:45]} 8. Bd3 {[%clk 0:02:11]}  c6 {[%clk 0:02:44]} 9. O-O {[%clk 0:02:10]}  Re8 {[%clk 0:02:40]} 10. Qc2 {[%clk 0:01:53]}  Qe7 {[%clk 0:02:18]} 11. a3 {[%clk 0:01:48]}  Ne4 {[%clk 0:02:14]} 12. Bxe4 {[%clk 0:01:41]}  dxe4 {[%clk 0:02:13]} 13. Nd2 {[%clk 0:01:41]}  Bf5 {[%clk 0:02:07]} 14. Nc4 {[%clk 0:01:40]}  Bc7 {[%clk 0:02:06]} 15. b4 {[%clk 0:01:35]}  Qh4 {[%clk 0:01:51]} 16. g3 {[%clk 0:01:32]}  Qh3 {[%clk 0:01:51]} 17. f4 {[%clk 0:01:25]}  exf3 {[%clk 0:01:46]} 18. Qf2 {[%clk 0:01:23]}  Bd3 {[%clk 0:01:41]} 19. Nd2 {[%clk 0:01:10]}  Bxf1 {[%clk 0:01:39]} 20. Nxf1 {[%clk 0:01:11]}  Nd7 {[%clk 0:01:35]} 21. Qxf3 {[%clk 0:01:09]}  Nf6 {[%clk 0:01:35]} 22. e4 {[%clk 0:01:08]}  Rad8 {[%clk 0:01:29]} 23. e5 {[%clk 0:01:03]}  Ng4 {[%clk 0:01:25]} 24. Ne2 {[%clk 0:01:03]}  Bb6 {[%clk 0:01:16]} 25. Nf4 {[%clk 0:00:42]}  Bxd4+ {[%clk 0:01:15]} 26. Kh1 {[%clk 0:00:41]}  Nxe5 {[%clk 0:01:01]} 27. Nxh3 {[%clk 0:00:33]}  Nxf3 {[%clk 0:01:01]} 0-1


[Site "https://www.chess.com"]

[Event "Titled Tuesday Blitz March 07 Late 2023"]
[White "Figorito, Nick"]
[Black "Moral Garcia, Serafin"]
[WhiteFideId "30923689"]
[BlackFideId "2201925"]
[WhiteElo "2383"]
[BlackElo "2254"]
[Result "0-1"]
[Round "05"]
[TimeControl "180+2"]
[Date "2023.03.07"]
[WhiteClock "0:00:51"]
[BlackClock "0:01:34"]

1. Nf3 {[%clk 0:03:00]}  Nf6 {[%clk 0:02:51]} 2. g3 {[%clk 0:03:01]}  g6 {[%clk 0:02:49]} 3. Bg2 {[%clk 0:03:01]}  Bg7 {[%clk 0:02:50]} 4. O-O {[%clk 0:03:02]}  O-O {[%clk 0:02:50]} 5. c4 {[%clk 0:03:03]}  c5 {[%clk 0:02:49]} 6. d4 {[%clk 0:03:03]}  cxd4 {[%clk 0:02:49]} 7. Nxd4 {[%clk 0:03:04]}  Nc6 {[%clk 0:02:50]} 8. Nc2 {[%clk 0:03:04]}  d6 {[%clk 0:02:49]} 9. Nc3 {[%clk 0:03:04]}  Be6 {[%clk 0:02:50]} 10. b3 {[%clk 0:03:05]}  Qd7 {[%clk 0:02:50]} 11. Bb2 {[%clk 0:03:05]}  Bh3 {[%clk 0:02:50]} 12. Ne3 {[%clk 0:03:05]}  Bxg2 {[%clk 0:02:49]} 13. Kxg2 {[%clk 0:03:06]}  Ng4 {[%clk 0:02:48]} 14. Nxg4 {[%clk 0:03:03]}  Qxg4 {[%clk 0:02:47]} 15. e3 {[%clk 0:02:59]}  Qf5 {[%clk 0:02:39]} 16. Nd5 {[%clk 0:02:52]}  Bxb2 {[%clk 0:02:36]} 17. Rb1 {[%clk 0:02:45]}  Bg7 {[%clk 0:02:36]} 18. b4 {[%clk 0:02:33]}  e6 {[%clk 0:02:29]} 19. Nf4 {[%clk 0:02:31]}  Rfd8 {[%clk 0:02:24]} 20. b5 {[%clk 0:02:29]}  Ne5 {[%clk 0:02:23]} 21. Qe2 {[%clk 0:02:24]}  Rac8 {[%clk 0:02:22]} 22. Rfc1 {[%clk 0:02:24]}  Rxc4 {[%clk 0:02:18]} 23. Rxc4 {[%clk 0:02:17]}  Nxc4 {[%clk 0:02:18]} 24. Rc1 {[%clk 0:02:04]}  d5 {[%clk 0:02:17]} 25. a4 {[%clk 0:02:04]}  h5 {[%clk 0:02:12]} 26. h4 {[%clk 0:02:00]}  Qe4+ {[%clk 0:02:09]} 27. Kh2 {[%clk 0:01:59]}  Be5 {[%clk 0:02:09]} 28. Nh3 {[%clk 0:01:57]}  Na5 {[%clk 0:01:57]} 29. f4 {[%clk 0:01:52]}  Bd6 {[%clk 0:01:57]} 30. Ng5 {[%clk 0:01:51]}  Qxa4 {[%clk 0:01:55]} 31. g4 {[%clk 0:01:47]}  hxg4 {[%clk 0:01:50]} 32. Qxg4 {[%clk 0:01:48]}  Qa2+ {[%clk 0:01:49]} 33. Kh1 {[%clk 0:01:37]}  Nc4 {[%clk 0:01:44]} 34. Nxe6 {[%clk 0:01:25]}  Nxe3 {[%clk 0:01:43]} 35. Qg5 {[%clk 0:01:22]}  Re8 {[%clk 0:01:37]} 36. Re1 {[%clk 0:00:51]}  Rxe6 {[%clk 0:01:34]} 0-1


[Site "https://www.chess.com"]

[Event "Titled Tuesday Blitz March 07 Late 2023"]
[White "Rostomyan, Mikayel"]
[Black "Fernandez Garcia, Gumersindo"]
[WhiteFideId "13313754"]
[BlackFideId "24516740"]
[WhiteElo "2009"]
[BlackElo "2093"]
[Result "1-0"]
[Round "05"]
[TimeControl "180+2"]
[Date "2023.03.07"]
[WhiteClock "0:00:03"]
[BlackClock "0:00:03"]

1. e4 {[%clk 0:02:22]}  c5 {[%clk 0:02:59]} 2. Nf3 {[%clk 0:02:22]}  g6 {[%clk 0:02:58]} 3. d4 {[%clk 0:02:22]}  cxd4 {[%clk 0:02:59]} 4. Nxd4 {[%clk 0:02:22]}  Bg7 {[%clk 0:02:59]} 5. c4 {[%clk 0:02:20]}  Nc6 {[%clk 0:03:00]} 6. Be3 {[%clk 0:02:21]}  Nf6 {[%clk 0:03:00]} 7. Nc3 {[%clk 0:02:20]}  Ng4 {[%clk 0:03:00]} 8. Qxg4 {[%clk 0:02:08]}  Nxd4 {[%clk 0:03:00]} 9. Bd3 {[%clk 0:02:06]}  d5 {[%clk 0:02:52]} 10. Qd1 {[%clk 0:02:04]}  dxe4 {[%clk 0:02:40]} 11. Bxe4 {[%clk 0:01:58]}  O-O {[%clk 0:02:41]} 12. O-O {[%clk 0:01:57]}  e5 {[%clk 0:02:40]} 13. Qd2 {[%clk 0:01:50]}  f5 {[%clk 0:02:38]} 14. Bd5+ {[%clk 0:01:50]}  Kh8 {[%clk 0:02:38]} 15. f4 {[%clk 0:01:47]}  Be6 {[%clk 0:02:00]} 16. fxe5 {[%clk 0:01:41]}  Bxd5 {[%clk 0:01:57]} 17. cxd5 {[%clk 0:01:39]}  b5 {[%clk 0:01:12]} 18. Qxd4 {[%clk 0:01:25]}  a6 {[%clk 0:01:09]} 19. Rfe1 {[%clk 0:01:15]}  Rc8 {[%clk 0:01:07]} 20. Rad1 {[%clk 0:01:02]}  Rc4 {[%clk 0:01:07]} 21. Qa7 {[%clk 0:00:48]}  f4 {[%clk 0:00:59]} 22. Bc5 {[%clk 0:00:40]}  Re8 {[%clk 0:00:57]} 23. e6 {[%clk 0:00:37]}  f3 {[%clk 0:00:53]} 24. Bd4 {[%clk 0:00:33]}  Rxd4 {[%clk 0:00:44]} 25. Rxd4 {[%clk 0:00:34]}  f2+ {[%clk 0:00:35]} 26. Kxf2 {[%clk 0:00:31]}  Qf6+ {[%clk 0:00:35]} 27. Ke3 {[%clk 0:00:18]}  Qg5+ {[%clk 0:00:28]} 28. Kd3 {[%clk 0:00:17]}  Bh6 {[%clk 0:00:23]} 29. Re2 {[%clk 0:00:14]}  Qc1 {[%clk 0:00:20]} 30. Qf7 {[%clk 0:00:13]}  Rf8 {[%clk 0:00:19]} 31. e7 {[%clk 0:00:09]}  Rxf7 {[%clk 0:00:18]} 32. e8=Q+ {[%clk 0:00:09]}  Rf8 {[%clk 0:00:19]} 33. Qe5+ {[%clk 0:00:10]}  Bg7 {[%clk 0:00:19]} 34. Qe3 {[%clk 0:00:10]}  Qf1 {[%clk 0:00:16]} 35. Re4 {[%clk 0:00:07]}  b4 {[%clk 0:00:14]} 36. Re8 {[%clk 0:00:06]}  bxc3 {[%clk 0:00:13]} 37. Rxf8+ {[%clk 0:00:07]}  Bxf8 {[%clk 0:00:13]} 38. Qe5+ {[%clk 0:00:07]}  Bg7 {[%clk 0:00:13]} 39. Qb8+ {[%clk 0:00:08]}  Bf8 {[%clk 0:00:12]} 40. Qe5+ {[%clk 0:00:07]}  Bg7 {[%clk 0:00:12]} 41. Qe8+ {[%clk 0:00:07]}  Bf8 {[%clk 0:00:13]} 42. bxc3 {[%clk 0:00:08]}  Qd1+ {[%clk 0:00:12]} 43. Kc4 {[%clk 0:00:08]}  Kg7 {[%clk 0:00:09]} 44. Re4 {[%clk 0:00:05]}  Qf1+ {[%clk 0:00:08]} 45. Kb3 {[%clk 0:00:04]}  Qb1+ {[%clk 0:00:09]} 46. Kc4 {[%clk 0:00:04]}  Qf1+ {[%clk 0:00:08]} 47. Kd4 {[%clk 0:00:04]}  Qf2+ {[%clk 0:00:06]} 48. Re3 {[%clk 0:00:04]}  Qd2+ {[%clk 0:00:06]} 49. Rd3 {[%clk 0:00:03]}  Qf4+ {[%clk 0:00:06]} 50. Qe4 {[%clk 0:00:04]}  Bc5+ {[%clk 0:00:04]} 51. Kxc5 {[%clk 0:00:02]}  Qxe4 {[%clk 0:00:04]} 52. Rd4 {[%clk 0:00:03]}  Qc2 {[%clk 0:00:02]} 53. c4 {[%clk 0:00:03]}  Qa4 {[%clk 0:00:02]} 54. d6 {[%clk 0:00:02]}  Qd7 {[%clk 0:00:02]} 55. Kd5 {[%clk 0:00:02]}  Kf6 {[%clk 0:00:02]} 56. Rf4+ {[%clk 0:00:02]}  Kg5 {[%clk 0:00:03]} 57. Re4 {[%clk 0:00:02]}  Qf5+ {[%clk 0:00:02]} 58. Re5 {[%clk 0:00:03]}  Kf6 {[%clk 0:00:02]} 59. Rxf5+ {[%clk 0:00:02]}  gxf5 {[%clk 0:00:03]} 60. Kc6 {[%clk 0:00:03]} 1-0


[Site "https://www.chess.com"]

[Event "Titled Tuesday Blitz March 07 Late 2023"]
[White "Ward, Ieuan C"]
[Black "Molenda, Marcin"]
[WhiteFideId "406627"]
[BlackFideId "1173065"]
[WhiteElo "2339"]
[BlackElo "2286"]
[Result "0-1"]
[Round "05"]
[TimeControl "180+2"]
[Date "2023.03.07"]
[WhiteClock "0:01:56"]
[BlackClock "0:02:16"]

1. d4 {[%clk 0:03:00]}  Nf6 {[%clk 0:02:54]} 2. c4 {[%clk 0:03:00]}  g6 {[%clk 0:02:54]} 3. Nc3 {[%clk 0:03:00]}  Bg7 {[%clk 0:02:55]} 4. Nf3 {[%clk 0:03:00]}  O-O {[%clk 0:02:55]} 5. g3 {[%clk 0:02:59]}  d6 {[%clk 0:02:53]} 6. Bg2 {[%clk 0:02:59]}  c6 {[%clk 0:02:54]} 7. O-O {[%clk 0:02:58]}  Qa5 {[%clk 0:02:54]} 8. Bd2 {[%clk 0:02:57]}  Qa6 {[%clk 0:02:53]} 9. b3 {[%clk 0:02:55]}  Nbd7 {[%clk 0:02:54]} 10. Qc2 {[%clk 0:02:55]}  e5 {[%clk 0:02:54]} 11. dxe5 {[%clk 0:02:52]}  dxe5 {[%clk 0:02:53]} 12. Bc1 {[%clk 0:02:38]}  Re8 {[%clk 0:02:43]} 13. Bb2 {[%clk 0:02:34]}  Nc5 {[%clk 0:02:43]} 14. Nd2 {[%clk 0:02:26]}  Bf5 {[%clk 0:02:40]} 15. e4 {[%clk 0:02:21]}  Bc8 {[%clk 0:02:32]} 16. Rfe1 {[%clk 0:02:09]}  Ne6 {[%clk 0:02:28]} 17. Ne2 {[%clk 0:02:07]}  Nd7 {[%clk 0:02:21]} 18. Bh3 {[%clk 0:02:02]}  Nd4 {[%clk 0:02:19]} 19. Qd3 {[%clk 0:01:56]}  Nc5 {[%clk 0:02:16]} 0-1


[Site "https://www.chess.com"]

[Event "Titled Tuesday Blitz March 07 Late 2023"]
[White "Romero Ruscalleda, Josep"]
[Black "Graif, William"]
[WhiteFideId "2231859"]
[BlackFideId "2609835"]
[WhiteElo "2183"]
[BlackElo "2205"]
[Result "1-0"]
[Round "05"]
[TimeControl "180+2"]
[Date "2023.03.07"]
[WhiteClock "0:00:21"]
[BlackClock "0:00:01"]

1. e4 {[%clk 0:03:00]}  e5 {[%clk 0:02:58]} 2. Nf3 {[%clk 0:03:00]}  Bc5 {[%clk 0:02:58]} 3. Bc4 {[%clk 0:03:00]}  Nf6 {[%clk 0:02:57]} 4. O-O {[%clk 0:02:54]}  Nxe4 {[%clk 0:02:56]} 5. d3 {[%clk 0:02:54]}  Nxf2 {[%clk 0:02:53]} 6. Rxf2 {[%clk 0:02:52]}  Bxf2+ {[%clk 0:02:53]} 7. Kxf2 {[%clk 0:02:52]}  d5 {[%clk 0:02:52]} 8. Bb3 {[%clk 0:02:49]}  O-O {[%clk 0:02:44]} 9. Nc3 {[%clk 0:02:47]}  c6 {[%clk 0:02:39]} 10. Bg5 {[%clk 0:02:43]}  f6 {[%clk 0:02:36]} 11. Bh4 {[%clk 0:02:43]}  Bg4 {[%clk 0:02:26]} 12. Kg1 {[%clk 0:02:39]}  Nd7 {[%clk 0:02:15]} 13. h3 {[%clk 0:02:37]}  Bh5 {[%clk 0:02:13]} 14. Qf1 {[%clk 0:02:29]}  Kh8 {[%clk 0:02:10]} 15. Re1 {[%clk 0:02:27]}  Qb6+ {[%clk 0:02:04]} 16. Qf2 {[%clk 0:02:24]}  Rae8 {[%clk 0:01:57]} 17. Qxb6 {[%clk 0:02:23]}  axb6 {[%clk 0:01:54]} 18. Bf2 {[%clk 0:02:22]}  b5 {[%clk 0:01:51]} 19. g4 {[%clk 0:02:19]}  Bg6 {[%clk 0:01:48]} 20. Nh4 {[%clk 0:02:18]}  f5 {[%clk 0:01:31]} 21. Nxg6+ {[%clk 0:02:16]}  hxg6 {[%clk 0:01:32]} 22. Ne2 {[%clk 0:02:12]}  f4 {[%clk 0:01:25]} 23. c3 {[%clk 0:02:02]}  e4 {[%clk 0:01:19]} 24. dxe4 {[%clk 0:01:59]}  dxe4 {[%clk 0:01:20]} 25. Nd4 {[%clk 0:01:58]}  e3 {[%clk 0:01:08]} 26. Bh4 {[%clk 0:01:45]}  f3 {[%clk 0:01:08]} 27. Kf1 {[%clk 0:01:41]}  Nc5 {[%clk 0:01:01]} 28. Bc2 {[%clk 0:01:37]}  Kh7 {[%clk 0:00:46]} 29. Bg5 {[%clk 0:01:33]}  e2+ {[%clk 0:00:42]} 30. Kf2 {[%clk 0:01:32]}  b4 {[%clk 0:00:36]} 31. Nxf3 {[%clk 0:01:25]}  bxc3 {[%clk 0:00:32]} 32. bxc3 {[%clk 0:01:25]}  Ra8 {[%clk 0:00:25]} 33. Rxe2 {[%clk 0:01:23]}  Ra3 {[%clk 0:00:22]} 34. Be7 {[%clk 0:01:11]}  Rxf3+ {[%clk 0:00:14]} 35. Kxf3 {[%clk 0:01:11]}  Rxc3+ {[%clk 0:00:15]} 36. Kg2 {[%clk 0:01:08]}  Nd7 {[%clk 0:00:13]} 37. Bb3 {[%clk 0:01:05]}  c5 {[%clk 0:00:12]} 38. Rc2 {[%clk 0:00:52]}  Re3 {[%clk 0:00:11]} 39. Bxc5 {[%clk 0:00:50]}  Re5 {[%clk 0:00:10]} 40. Bf2 {[%clk 0:00:49]}  b5 {[%clk 0:00:08]} 41. Rc7 {[%clk 0:00:47]}  Nf6 {[%clk 0:00:09]} 42. Bc2 {[%clk 0:00:44]}  Re2 {[%clk 0:00:09]} 43. Bd3 {[%clk 0:00:42]}  Rxa2 {[%clk 0:00:08]} 44. Kf3 {[%clk 0:00:39]}  b4 {[%clk 0:00:08]} 45. Bd4 {[%clk 0:00:39]}  Ne8 {[%clk 0:00:04]} 46. Re7 {[%clk 0:00:37]}  Ra3 {[%clk 0:00:03]} 47. Ke2 {[%clk 0:00:37]}  Ra2+ {[%clk 0:00:03]} 48. Ke3 {[%clk 0:00:37]}  Ra8 {[%clk 0:00:03]} 49. Bb5 {[%clk 0:00:31]}  Nd6 {[%clk 0:00:04]} 50. Rxg7+ {[%clk 0:00:30]}  Kh6 {[%clk 0:00:04]} 51. Bc6 {[%clk 0:00:29]}  Re8+ {[%clk 0:00:03]} 52. Kd3 {[%clk 0:00:29]}  Rc8 {[%clk 0:00:03]} 53. Bd5 {[%clk 0:00:27]}  Rb8 {[%clk 0:00:02]} 54. Rd7 {[%clk 0:00:24]}  Nb5 {[%clk 0:00:02]} 55. Be3+ {[%clk 0:00:24]}  g5 {[%clk 0:00:01]} 56. Be4 {[%clk 0:00:22]}  Nc3 {[%clk 0:00:01]} 57. Rh7# {[%clk 0:00:21]} 1-0


[Site "https://www.chess.com"]